fUSD/lending_fUSD_20251130
["ID","MTS","AMOUNT","RATE_DAILY","PERIOD"]
[395131601,1764462641394,-500.0,0.00016973,2]
[395131602,1764462641404,-500.0,0.00016973,2]
[395131603,1764462641414,-161.98179923,0.00016973,2]
[395131604,1764462641425,-507.05784267,0.00016973,2]
[395131605,1764462641435,-500.0,0.00016973,2]
[395131606,1764462641444,-366.12430531,0.00016973,2]
[395131607,1764462641454,-500.0,0.00016973,2]
[395131608,1764462641462,-501.68270719,0.00016973,2]
[395131609,1764462641472,-167.29393494,0.00016973,2]
[395131610,1764462641482,-500.0,0.00016973,2]
[395131611,1764462641493,-500.0,0.00016973,2]
[395131612,1764462641504,-500.0,0.00016973,2]
[395131613,1764462641515,-500.0,0.00016973,2]
[395131614,1764462641525,-500.0,0.00016973,2]
[395131615,1764462641534,-500.0,0.00016973,2]
[395131616,1764462641546,-500.0,0.00016973,2]
[395131617,1764462641558,-505.98502677,0.00016973,2]
[395131618,1764462641570,-500.0,0.00016973,2]
[395131619,1764462641580,-500.0,0.00016973,2]
[395131620,1764462641589,-500.0,0.00016973,2]
[395131621,1764462641599,-500.0,0.00016973,2]
[395131622,1764462641609,-500.0,0.00016973,2]
[395131623,1764462641619,-176.33851761,0.00016973,2]
[395131624,1764462641628,-500.0,0.00016973,2]
[395131625,1764462641637,-500.0,0.00016973,2]
[395131626,1764462641646,-500.0,0.00016973,2]
[395131627,1764462641655,-500.0,0.00016973,2]
[395131628,1764462641664,-500.0,0.00016973,2]
[395131629,1764462641673,-500.0,0.00016973,2]
[395131630,1764462641683,-172.25490603,0.00016973,2]
[395131631,1764462641692,-500.0,0.00016973,2]
[395131632,1764462641701,-500.0,0.00016973,2]
[395131633,1764462641712,-500.0,0.00016973,2]
[395131634,1764462641723,-500.0,0.00016973,2]
[395131635,1764462641733,-500.0,0.00016973,2]
[395131636,1764462641742,-500.0,0.00016973,2]
[395131637,1764462641752,-500.0,0.00016973,2]
[395131638,1764462641771,-500.0,0.00016973,2]
[395131639,1764462641781,-500.0,0.00016973,2]
[395131640,1764462641790,-151.0,0.00016997,2]
[395131641,1764462641799,-500.0,0.00016999,2]
[395131642,1764462641808,-500.0,0.00016999,2]
[395131643,1764462641817,-500.0,0.00016999,2]
[395131644,1764462641826,-500.0,0.00016999,2]
[395131645,1764462641835,-500.0,0.00016999,2]
[395131646,1764462641844,-500.0,0.00016999,2]
[395131647,1764462641853,-300.0,0.00016999,2]
[395131648,1764462641863,-300.0,0.00016999,2]
[395131649,1764462641872,-300.0,0.00016999,2]
[395131650,1764462641881,-500.0,0.00016999,2]
[395131651,1764462641890,-500.0,0.00016999,2]
[395131652,1764462641899,-500.0,0.00016999,2]
[395131653,1764462641909,-500.0,0.00016999,2]
[395131654,1764462641918,-500.0,0.00016999,2]
[395131655,1764462641928,-500.0,0.00016999,2]
[395131656,1764462641938,-500.0,0.00016999,2]
[395131657,1764462641947,-500.0,0.00016999,2]
[395131658,1764462641956,-500.0,0.00016999,2]
[395131659,1764462641966,-416.08725444,0.00016999,2]
[395131660,1764462641975,-250.0,0.00017,2]
[395131661,1764462641984,-4576216.62158827,0.00017,2]
[395131662,1764462641998,-1260.78888652,0.00017,2]
[395131663,1764462642009,-3637.15312271,0.00017,2]
[395131664,1764462642029,-309.60591375,0.00017,2]
[395131665,1764462642099,-967213.37849449,0.00017,2]
[395131666,1764462642136,-544.16434076,0.00017,2]
[395131695,1764462646544,-613.09700592,0.00017,2]
[395131733,1764462684371,-300.0,0.00013849,2]
[395131734,1764462684400,-300.0,0.0001385,2]
[395131735,1764462684431,-195.0,0.0001385,2]
[395131736,1764462684505,-8410.01,0.0001385,2]
[395131737,1764462684668,-10000.01,0.0001385,2]
[395131738,1764462684809,-10000.01,0.0001385,2]
[395131741,1764462687427,-10000.01,0.0001385,2]
[395131775,1764462690666,-10000.01,0.0001385,2]
[395131776,1764462690778,-10000.01,0.0001385,2]
[395131790,1764462709411,-2835.862,0.00013573,2]
[395131791,1764462709439,-179.65,0.00013573,2]
[395131792,1764462709485,-3968.986,0.00013849,2]
[395131793,1764462709596,-10000.01,0.00013849,2]
[395131794,1764462709701,-3515.19290196,0.00013849,2]
[395131795,1764462709735,-2969.62419608,0.0001385,2]
[395131796,1764462709809,-10000.01,0.0001385,2]
[395131797,1764462712096,-262.44,0.0001385,2]
[395131798,1764462712298,-10000.01,0.0001385,2]
[395131799,1764462713971,-195.0,0.0001385,2]
[395131800,1764462715391,-10000.01,0.0001385,2]
[395131801,1764462715504,-10000.01,0.0001385,2]
[395131802,1764462715582,-166.66,0.0001385,2]
[395131803,1764462715623,-10000.01,0.0001385,2]
[395131804,1764462717153,-286.48255414,0.0001385,2]
[395131805,1764462719304,-157.53759931,0.0001385,2]
[395131807,1764462721408,-166.66,0.0001385,2]
[395131808,1764462723708,-300.0,0.00013849,2]
[395131809,1764462724754,-1125.32910829,0.0001385,2]
[395131810,1764462726962,-926.60251764,0.0001385,2]
[395131811,1764462728952,-534.47777655,0.0001385,2]
[395131812,1764462731042,-280.49203573,0.0001385,2]
[395131813,1764462749509,-10000.01,0.0001375,2]
[395131814,1764462749637,-10000.01,0.0001375,2]
[395131815,1764462749762,-2609.53438077,0.0001375,2]
[395131816,1764462749800,-4780.94123846,0.0001385,2]
[395131817,1764462755317,-579.22971904,0.0001375,2]
[395131818,1764462755347,-252.5711315,0.00013849,2]
[395131819,1764462755378,-500.0,0.00013849,2]
[395131820,1764462755407,-161.73722117,0.00013849,2]
[395131821,1764462755437,-505.91537331,0.00013849,2]
[395131822,1764462755465,-628.80011146,0.00013849,2]
[395131823,1764462755496,-500.0,0.00013849,2]
[395131824,1764462755528,-500.0,0.00013849,2]
[395131825,1764462755561,-500.0,0.00013849,2]
[395131826,1764462755593,-500.0,0.00013849,2]
[395131827,1764462755627,-243.50288704,0.00013849,2]
[395131828,1764462757334,-256.49711296,0.00013849,2]
[395131829,1764462757368,-500.0,0.00013849,2]
[395131830,1764462757398,-500.0,0.00013849,2]
[395131831,1764462757430,-500.0,0.00013849,2]
[395131832,1764462757460,-500.0,0.00013849,2]
[395131833,1764462757489,-500.0,0.00013849,2]
[395131834,1764462757518,-500.0,0.00013849,2]
[395131835,1764462757548,-500.0,0.00013849,2]
[395131836,1764462757578,-500.0,0.00013849,2]
[395131837,1764462757607,-500.0,0.00013849,2]
[395131838,1764462757729,-500.0,0.00013849,2]
[395131839,1764462757762,-500.0,0.00013849,2]
[395131840,1764462757792,-500.0,0.00013849,2]
[395131841,1764462757822,-500.0,0.00013849,2]
[395131842,1764462757853,-500.0,0.00013849,2]
[395131843,1764462757882,-500.0,0.00013849,2]
[395131844,1764462757915,-500.0,0.00013849,2]
[395131845,1764462757950,-500.0,0.00013849,2]
[395131846,1764462757978,-500.0,0.00013849,2]
[395131847,1764462758009,-500.0,0.00013849,2]
[395131848,1764462758959,-256.49711296,0.00013849,2]
[395131849,1764462758976,-243.50288704,0.00013849,2]
[395131850,1764462758985,-256.49711296,0.00013849,2]
[395131851,1764462758999,-0.01,0.00013849,2]
[395131852,1764462759078,-243.49288704,0.00013849,2]
[395131853,1764462759110,-500.0,0.00013849,2]
[395131854,1764462759143,-500.0,0.00013849,2]
[395131855,1764462759175,-500.0,0.00013849,2]
[395131856,1764462759208,-500.0,0.00013849,2]
[395131857,1764462759241,-500.0,0.00013849,2]
[395131858,1764462759272,-500.0,0.00013849,2]
[395131859,1764462759304,-500.0,0.00013849,2]
[395131860,1764462759335,-500.0,0.00013849,2]
[395131861,1764462759366,-183.57853828,0.00013849,2]
[395131862,1764462759398,-500.0,0.00013849,2]
[395131863,1764462759441,-302.0,0.00013849,2]
[395131864,1764462759669,-145.86714936,0.00013849,2]
[395131865,1764462761068,-52.13285064,0.00013849,2]
[395131866,1764462761095,-500.0,0.00013849,2]
[395131867,1764462761123,-61.95516506,0.00013849,2]
[395131868,1764462769976,-195.0,0.00013849,2]
[395131869,1764462772298,-195.0,0.00013849,2]
[395131870,1764462775353,-525.77771,0.00013849,2]
[395131871,1764462802710,-300.0,0.00013848,2]
[395131872,1764462802738,-191.2233833,0.00013849,2]
[395131873,1764462803902,-165.34815311,0.0001375,2]
[395131993,1764462950734,-184.02977511,0.00013681,2]
[395131994,1764462952894,-159.98626008,0.00013681,2]
[395131995,1764462980012,-195.0,0.00013681,2]
[395131996,1764462982695,-249.98626008,0.00013681,2]
[395131997,1764462984765,-483.74802053,0.00013681,2]
[395131998,1764462987484,-338.01536438,0.00013681,2]
[395131999,1764462988134,153.84,0.00013496,2]
[395132000,1764462988161,153.84,0.00013496,2]
[395132001,1764462988188,153.84,0.00013496,2]
[395132002,1764462988215,153.84,0.00013496,2]
[395132003,1764462988239,153.84,0.00013496,2]
[395132004,1764462988267,153.84,0.00013496,2]
[395132005,1764462988293,153.84,0.00013496,2]
[395132006,1764462988318,153.84,0.00013496,2]
[395132007,1764462988342,153.84,0.00013496,2]
[395132008,1764462988366,196.79,0.00013496,2]
[395132009,1764462988390,250.0,0.00013496,2]
[395132010,1764462988416,177.89,0.00013496,2]
[395132011,1764462988441,157.7701904,0.00013496,2]
[395132012,1764462988468,158.3,0.00013496,2]
[395132013,1764462988494,158.3,0.00013496,2]
[395132014,1764462988522,158.3,0.00013496,2]
[395132015,1764462988548,158.3,0.00013496,2]
[395132016,1764462988574,158.3,0.00013496,2]
[395132017,1764462988599,158.3,0.00013496,2]
[395132018,1764462988623,158.3,0.00013496,2]
[395132019,1764462988650,158.3,0.00013496,2]
[395132020,1764462988674,158.3,0.00013496,2]
[395132021,1764462988701,158.3,0.00013496,2]
[395132022,1764462988726,158.3,0.00013496,2]
[395132023,1764462988750,161.07,0.00013496,2]
[395132024,1764462988774,877.44,0.00013496,2]
[395132025,1764462988797,355.23565192,0.00013496,2]
[395132026,1764462988821,1118.62186315,0.00013496,2]
[395132027,1764462992977,-250.0,0.00013496,2]
[395132028,1764462996073,-202.30130885,0.00013496,2]
[395132029,1764462999433,-250.0,0.00013496,2]
[395132030,1764463001868,-172.85401695,0.00013496,2]
[395132031,1764463004565,-166.18536062,0.00013496,2]
[395132032,1764463010291,-374.26998707,0.00013496,2]
[395132033,1764463014361,-158.98036794,0.00013496,2]
[395132034,1764463015881,-532.93224062,0.00013496,2]
[395132035,1764463024706,-300.0,0.00013428,2]
[395132036,1764463027324,-199.15671879,0.00013428,2]
[395132039,1764463082171,-4702.46,0.00013246,2]
[395132040,1764463082196,-595.09,0.00013246,2]
[395132042,1764463088461,-3046.18098752,0.00013496,2]
[395132043,1764463088486,-3907.64802496,0.00013496,2]
[395132044,1764463095190,-250.0,0.0001369,2]
[395132045,1764463095222,-1200.0,0.00013698,2]
[395132046,1764463095266,-1500.0,0.00013699,2]
[395132047,1764463095296,-735.48,0.00013699,2]
[395132048,1764463095324,-288.70542759,0.00013745,2]
[395132049,1764463095353,-541.69888938,0.0001375,2]
[395132050,1764463095474,-968.24136606,0.0001375,2]
[395132070,1764463296394,1559.49227214,0.00013144,2]
[395132071,1764463296416,319.16772786,0.00013144,2]
[395132077,1764463320750,-1102.292573,0.00013526,2]
[395132078,1764463320777,-3166.894854,0.00013595,2]
[395132079,1764463320812,-1461.635146,0.00013595,2]
[395132080,1764463327183,-250.0,0.00013638,2]
[395132081,1764463327211,-150.0,0.00013748,2]
[395132082,1764463327238,-300.0,0.00013749,2]
[395132083,1764463327265,-300.0,0.00013749,2]
[395132084,1764463327294,-1200.0,0.00013749,2]
[395132085,1764463327327,-2767.007,0.00013749,2]
[395132086,1764463327445,-65.996,0.00013749,2]
[395132087,1764463333828,-180.835,0.00013749,2]
[395132088,1764463333865,-500.0,0.00013749,2]
[395132089,1764463333896,-239.64449271,0.00013749,2]
[395132090,1764463333930,-500.0,0.00013749,2]
[395132091,1764463333964,-500.0,0.00013749,2]
[395132092,1764463333996,-500.0,0.00013749,2]
[395132093,1764463334031,-500.0,0.00013749,2]
[395132094,1764463334064,-500.0,0.00013749,2]
[395132095,1764463334095,-500.0,0.00013749,2]
[395132096,1764463334129,-500.0,0.00013749,2]
[395132097,1764463334158,-500.0,0.00013749,2]
[395132098,1764463334469,-159.05101458,0.00013749,2]
[395132100,1764463438747,3719.90130516,0.00013145,2]
[395132101,1764463438770,4039.06903302,0.00013145,2]
[395132102,1764463438790,4039.06903302,0.00013145,2]
[395132103,1764463438813,4039.06903302,0.00013145,2]
[395132104,1764463438834,4039.06903302,0.00013145,2]
[395132105,1764463438856,4039.06903302,0.00013145,2]
[395132203,1764463685847,-209.3641883,0.0001288,2]
[395132204,1764463685878,-1000.0,0.0001288,2]
[395132205,1764463685907,-245.41,0.0001298,2]
[395132206,1764463685934,-1625.92073,0.0001303,2]
[395132207,1764463686378,-288.0,0.0001303,2]
[395132208,1764463686519,-3262.6201634,0.00013031,2]
[395132209,1764463686534,-7956.3498366,0.00013031,2]
[395132210,1764463686543,-1200.0,0.00013144,2]
[395132211,1764463686552,-300.0,0.00013144,2]
[395132212,1764463686562,-150.0,0.00013144,2]
[395132213,1764463686572,-281.32465833,0.00013145,2]
[395132214,1764463686581,-112.33550507,0.00013145,2]
[395132215,1764463688913,-10000.01,0.00013145,2]
[395132218,1764463693594,-10000.01,0.00013145,2]
[395132219,1764463700027,-280.15032197,0.00013145,2]
[395132220,1764463701881,-581.0457758,0.00013145,2]
[395132221,1764463703534,-156.10674992,0.00013145,2]
[395132222,1764463706306,-500.0,0.00013145,2]
[395132223,1764463708362,-166.66,0.00013145,2]
[395132224,1764463711380,-240.23519614,0.00013145,2]
[395132225,1764463713584,-500.0,0.00013145,2]
[395132228,1764463717329,-249.54801596,0.00013145,2]
[395132229,1764463721618,-184.56244255,0.00013145,2]
[395132230,1764463724040,-308.23795862,0.00013145,2]
[395132231,1764463727617,-500.0,0.00013145,2]
[395132232,1764463727813,-10000.01,0.00013145,2]
[395132233,1764463728090,-10000.01,0.00013145,2]
[395132234,1764463728346,-3039.90156371,0.00013145,2]
[395132243,1764463731675,-153.7343932,0.00013649,2]
[395132251,1764463732200,250.0,0.00012999,2]
[395132280,1764463733844,-250.71056848,0.00013649,2]
[395132282,1764463734819,3670.20687258,0.00012999,2]
[395132283,1764463735225,10000.01,0.00012999,2]
[395132284,1764463735247,10000.01,0.00012999,2]
[395132285,1764463735280,10000.01,0.00012999,2]
[395132286,1764463735304,10000.01,0.00012999,2]
[395132287,1764463735327,10000.01,0.00012999,2]
[395132289,1764463736803,-500.0,0.00012999,2]
[395132292,1764463738410,-499.99999983,0.00012999,2]
[395132293,1764463740668,-232.76894462,0.00012999,2]
[395132304,1764463742876,-300.0,0.00012998,2]
[395132306,1764463743015,-891.71688568,0.00012999,2]
[395132307,1764463746191,-5479.80312742,0.00012999,2]
[395132309,1764463747153,-153.01384584,0.00012999,2]
[395132310,1764463747639,166.89,7.945e-05,2]
[395132311,1764463747664,296.45516282,7.945e-05,2]
[395132312,1764463747687,211.0,7.945e-05,2]
[395132313,1764463747711,177.89,7.945e-05,2]
[395132314,1764463747738,992.75,7.945e-05,2]
[395132315,1764463747763,153.84,7.945e-05,2]
[395132316,1764463747787,153.84,7.945e-05,2]
[395132317,1764463747811,153.84,7.945e-05,2]
[395132318,1764463747834,153.84,7.945e-05,2]
[395132319,1764463747859,153.84,7.945e-05,2]
[395132320,1764463747884,153.84,7.945e-05,2]
[395132321,1764463747909,153.84,7.945e-05,2]
[395132322,1764463747935,153.84,7.945e-05,2]
[395132323,1764463747961,177.89,7.945e-05,2]
[395132324,1764463747988,158.3,7.945e-05,2]
[395132325,1764463748015,158.3,7.945e-05,2]
[395132326,1764463748039,158.3,7.945e-05,2]
[395132327,1764463748064,58.70587818,7.945e-05,2]
[395132330,1764463750415,-500.0,0.00012999,2]
[395132331,1764463751363,-10000.01,0.00012999,2]
[395132333,1764463752311,-3958.96967597,0.00012999,2]
[395132334,1764463752335,-2082.07064806,0.00012999,2]
[395132335,1764463754209,176.79979205,0.00013648,2]
[395132336,1764463754247,500.0,0.00013648,2]
[395132337,1764463754401,292.99686225,0.00013648,2]
[395132436,1764463774956,-451.0,0.00012988,2]
[395132437,1764463778331,-167.788819,0.00012988,2]
[395132439,1764463780616,-248.70577889,0.00012988,2]
[395132449,1764463787906,-984.92540211,0.00012988,2]
[395132450,1764463787935,-219.62,0.00013004,2]
[395132451,1764463787964,-555.21452161,0.00013145,2]
[395132452,1764463787994,-284.2089843,0.0001355,2]
[395132453,1764463788021,-1091.79132996,0.00013579,2]
[395132454,1764463788128,-2758.69286974,0.00013579,2]
[395132455,1764463789371,-969.7966543,0.00013579,2]
[395132456,1764463789406,-500.0,0.00013648,2]
[395132457,1764463789438,-500.0,0.00013648,2]
[395132458,1764463789472,-500.0,0.00013648,2]
[395132459,1764463789506,-500.0,0.00013648,2]
[395132460,1764463789542,-500.0,0.00013648,2]
[395132461,1764463789572,-500.0,0.00013648,2]
[395132462,1764463789602,-500.0,0.00013648,2]
[395132463,1764463789631,-500.0,0.00013648,2]
[395132464,1764463789773,-60.4166914,0.00013648,2]
[395132466,1764463801206,300.0,0.00013648,2]
[395132467,1764463801241,1200.0,0.00013648,2]
[395132470,1764463808326,-210.2977053,0.00013649,2]
[395132471,1764463810813,-500.0,0.00013649,2]
[395132472,1764463813057,-438.7022947,0.00013649,2]
[395132473,1764463815722,-246.70617127,0.00013649,2]
[395132476,1764463818739,-172.0924981,0.00013649,2]
[395132485,1764463831630,-368.0,0.00013649,2]
[395132486,1764463831643,-322.59321388,0.00013649,2]
[395132489,1764463834987,-201.6155017,0.00013649,2]
[395132490,1764463837082,-498.02474731,0.00013649,2]
[395132502,1764463837536,-11575.27801588,0.00013649,2]
[395132503,1764463837708,-451.15504761,0.00013649,2]
[395132504,1764463837728,-542.46609112,0.00013649,2]
[395132505,1764463837748,-744068.62375145,0.00013649,2]
[395132506,1764463837760,-24525.82864805,0.0001365,2]
[395132507,1764463837771,-1510.0,0.0001365,2]
[395132508,1764463837781,-6715.3857,0.0001365,2]
[395132509,1764463837792,-500.0,0.00013748,2]
[395132510,1764463837803,-250.0,0.00013748,2]
[395132512,1764463837812,-500.0,0.00013748,2]
[395132514,1764463837822,-150.0,0.00013748,2]
[395132515,1764463837832,-500.0,0.00013748,2]
[395132516,1764463837841,-500.0,0.00013748,2]
[395132517,1764463837851,-1000.0,0.00013749,2]
[395132519,1764463837860,-803.0,0.0001375,2]
[395132521,1764463837870,-150.0,0.0001375,2]
[395132523,1764463837880,-500.0,0.0001375,2]
[395132525,1764463837890,-500.0,0.0001375,2]
[395132527,1764463837899,-500.0,0.0001375,2]
[395132528,1764463837909,-157.99052045,0.0001375,2]
[395132530,1764463837918,-500.0,0.0001375,2]
[395132532,1764463837928,-500.0,0.0001375,2]
[395132534,1764463837938,-963.0100492,0.0001375,2]
[395132535,1764463837948,-2855.45924689,0.0001375,2]
[395132536,1764463837958,-2500.0,0.0001375,2]
[395132537,1764463837967,-1000.0,0.0001375,2]
[395132538,1764463837977,-419.0,0.00013799,2]
[395132539,1764463837987,-166.66,0.000138,2]
[395132540,1764463837997,-1234.7802,0.00013808,2]
[395132541,1764463838011,-299.99,0.00013808,2]
[395132542,1764463838021,-1526.34,0.00013808,2]
[395132543,1764463838031,-999.99,0.00013808,2]
[395132544,1764463838042,-510.37,0.00013808,2]
[395132545,1764463838053,-9999.99,0.00013808,2]
[395132546,1764463838063,-7605.04,0.00013808,2]
[395132547,1764463838073,-6214.9,0.00013808,2]
[395132548,1764463838083,-150.99,0.00013808,2]
[395132549,1764463838094,-7704.66,0.00013808,2]
[395132550,1764463838104,-113674.39,0.00013808,2]
[395132551,1764463838114,-4993.69,0.00013808,2]
[395132552,1764463838124,-9999.99,0.00013808,2]
[395132553,1764463838134,-311.0,0.00013826,2]
[395132554,1764463838145,-500.0,0.00013842,2]
[395132555,1764463838156,-200.0,0.00013842,2]
[395132556,1764463838166,-500.0,0.00013842,2]
[395132557,1764463838176,-598.37205546,0.00013842,2]
[395132558,1764463838186,-200.0,0.00013842,2]
[395132559,1764463838197,-200.0,0.00013842,2]
[395132560,1764463838207,-173.21142824,0.00013842,2]
[395132561,1764463838217,-500.0,0.00013842,2]
[395132562,1764463838228,-151.0,0.00013842,2]
[395132563,1764463838239,-151.0,0.00013842,2]
[395132564,1764463838249,-151.0,0.00013842,2]
[395132565,1764463838259,-151.0,0.00013842,2]
[395132566,1764463838269,-151.0,0.00013842,2]
[395132567,1764463838279,-151.0,0.00013842,2]
[395132568,1764463838289,-151.0,0.00013842,2]
[395132569,1764463838299,-151.0,0.00013842,2]
[395132570,1764463838310,-151.0,0.00013842,2]
[395132571,1764463838320,-151.0,0.00013842,2]
[395132572,1764463838330,-151.0,0.00013842,2]
[395132573,1764463838340,-151.0,0.00013842,2]
[395132574,1764463838350,-151.0,0.00013842,2]
[395132575,1764463838364,-151.0,0.00013842,2]
[395132576,1764463838374,-151.0,0.00013842,2]
[395132577,1764463838385,-151.0,0.00013842,2]
[395132578,1764463838394,-151.0,0.00013842,2]
[395132579,1764463838405,-151.0,0.00013842,2]
[395132580,1764463838415,-151.0,0.00013842,2]
[395132581,1764463838424,-151.0,0.00013842,2]
[395132582,1764463838434,-151.0,0.00013842,2]
[395132583,1764463838445,-151.0,0.00013842,2]
[395132584,1764463838455,-151.0,0.00013842,2]
[395132585,1764463838465,-151.0,0.00013842,2]
[395132586,1764463838476,-151.0,0.00013842,2]
[395132587,1764463838490,-151.0,0.00013842,2]
[395132588,1764463838500,-151.0,0.00013842,2]
[395132589,1764463838510,-151.0,0.00013842,2]
[395132590,1764463838521,-151.0,0.00013842,2]
[395132591,1764463838531,-151.0,0.00013842,2]
[395132592,1764463838540,-151.0,0.00013842,2]
[395132593,1764463838552,-151.0,0.00013842,2]
[395132594,1764463838563,-151.0,0.00013842,2]
[395132595,1764463838572,-1513.25,0.00013842,2]
[395132596,1764463838582,-10355.8483361,0.00013849,2]
[395132597,1764463838592,-514.85765919,0.00013849,2]
[395132598,1764463838602,-500.0,0.00013849,2]
[395132599,1764463838612,-500.0,0.00013849,2]
[395132600,1764463838622,-500.0,0.00013849,2]
[395132601,1764463838631,-500.0,0.00013849,2]
[395132602,1764463838641,-150.0,0.00013849,2]
[395132603,1764463838650,-150.0,0.00013849,2]
[395132604,1764463838660,-150.0,0.00013849,2]
[395132605,1764463838670,-500.0,0.00013849,2]
[395132606,1764463838680,-150.0,0.00013849,2]
[395132607,1764463838690,-150.0,0.00013849,2]
[395132608,1764463838700,-500.0,0.00013849,2]
[395132609,1764463838710,-500.0,0.00013849,2]
[395132610,1764463838720,-500.0,0.00013849,2]
[395132611,1764463838730,-210.176464,0.00013849,2]
[395132612,1764463838740,-500.0,0.00013849,2]
[395132613,1764463838749,-607.692763,0.00013849,2]
[395132614,1764463838759,-500.0,0.00013849,2]
[395132615,1764463838768,-500.0,0.00013849,2]
[395132616,1764463838778,-500.0,0.00013849,2]
[395132617,1764463838788,-500.0,0.00013849,2]
[395132618,1764463838798,-500.0,0.00013849,2]
[395132619,1764463838808,-500.0,0.00013849,2]
[395132620,1764463838818,-308.22,0.00013849,2]
[395132621,1764463838827,-1539.04,0.00013849,2]
[395132622,1764463838837,-150.99,0.00013849,2]
[395132623,1764463838847,-1421.94,0.00013849,2]
[395132624,1764463838857,-499.99,0.00013849,2]
[395132625,1764463838867,-1114.06,0.00013849,2]
[395132626,1764463838877,-9999.99,0.00013849,2]
[395132627,1764463838887,-200.0,0.0001385,2]
[395132628,1764463838897,-1000.0,0.0001385,2]
[395132629,1764463838907,-33394.88,0.0001385,2]
[395132630,1764463838916,-274.0,0.00013854,2]
[395132631,1764463838926,-226.0,0.00013881,2]
[395132632,1764463838936,-518.09228248,0.00013885,2]
[395132633,1764463838947,-500.0,0.00013885,2]
[395132634,1764463838957,-500.0,0.00013885,2]
[395132635,1764463838967,-500.0,0.00013885,2]
[395132636,1764463838978,-803.0,0.00013887,2]
[395132637,1764463838988,-150.0,0.00013887,2]
[395132638,1764463838998,-500.0,0.00013887,2]
[395132639,1764463839008,-500.0,0.00013887,2]
[395132640,1764463839019,-500.0,0.00013887,2]
[395132641,1764463839029,-500.0,0.00013887,2]
[395132642,1764463839039,-500.0,0.00013887,2]
[395132643,1764463839049,-284.20898428,0.00013943,2]
[395132644,1764463839059,-500.0,0.00013949,2]
[395132645,1764463839069,-500.0,0.00013949,2]
[395132646,1764463839079,-500.0,0.00013949,2]
[395132647,1764463839089,-500.0,0.00013949,2]
[395132648,1764463839098,-531.25007732,0.00013949,2]
[395132649,1764463839108,-500.0,0.00013949,2]
[395132650,1764463839118,-500.0,0.00013949,2]
[395132651,1764463839128,-500.0,0.00013949,2]
[395132652,1764463839137,-500.0,0.00013949,2]
[395132653,1764463839148,-630.9506587,0.00013949,2]
[395132654,1764463839159,-500.0,0.00013949,2]
[395132655,1764463839169,-500.0,0.00013949,2]
[395132656,1764463839179,-500.0,0.00013949,2]
[395132657,1764463839189,-500.0,0.00013949,2]
[395132658,1764463839199,-174.2008656,0.00013949,2]
[395132659,1764463839208,-500.0,0.00013949,2]
[395132660,1764463839218,-500.0,0.00013949,2]
[395132661,1764463839229,-500.0,0.00013949,2]
[395132662,1764463839239,-500.0,0.00013949,2]
[395132663,1764463839249,-500.0,0.00013949,2]
[395132664,1764463839258,-500.0,0.00013949,2]
[395132665,1764463839268,-500.0,0.00013949,2]
[395132667,1764463839279,-500.0,0.00013949,2]
[395132668,1764463839289,-500.0,0.00013949,2]
[395132670,1764463839298,-500.0,0.00013949,2]